bitfinex-derivatives/quotes_BTCF0:USTF0_20250903
["timestamp","ask_amount","ask_price","bid_price","bid_amount"]
[1756886405305,1.50679033,111160.0,111150.0,0.00449]
[1756886406613,1.50679033,111160.0,111140.0,0.0001]
[1756886406819,1.25689033,111160.0,111140.0,0.0001]
[1756886408115,1.55546691,111160.0,111140.0,0.0001]
[1756886408409,0.81744,111150.0,111140.0,0.0011]
[1756886408616,1.29234033,111150.0,111140.0,0.001]
[1756886408911,1.29238033,111150.0,111140.0,0.001]
[1756886409606,1.29238033,111150.0,111140.0,0.002]
[1756886410219,1.27029,111150.0,111140.0,0.002]
[1756886412318,1.52029,111150.0,111130.0,0.0001]
[1756886412616,1.29247507,111150.0,111130.0,0.0001]
[1756886413514,1.29247507,111150.0,111130.0,0.02371]
[1756886413515,0.88817,111140.0,111130.0,0.02371]
[1756886413715,1.26813,111140.0,111130.0,0.02361]
[1756886413907,1.26813,111140.0,111130.0,0.04638]
[1756886414316,0.45053,111140.0,111130.0,0.04638]
[1756886414516,1.26813,111140.0,111130.0,0.04738]
[1756886415015,1.26817,111140.0,111130.0,0.04938]
[1756886415815,1.26813,111140.0,111130.0,0.04938]
[1756886416505,1.26805,111140.0,111130.0,0.04838]
[1756886416709,0.45053,111140.0,111130.0,0.04938]
[1756886417015,0.88637,111140.0,111130.0,0.04938]
[1756886417617,0.88637,111140.0,111130.0,0.003]
[1756886419906,0.88637,111140.0,111120.0,0.0001]
[1756886420217,0.88647,111140.0,111120.0,0.0001]
[1756886421211,0.88647,111140.0,111120.0,0.0021]
[1756886422018,0.81756,111130.0,111120.0,0.0021]
[1756886422318,0.40753,111130.0,111120.0,0.004]
[1756886422519,0.40753,111130.0,111120.0,0.05038]
[1756886423017,1.03005,111130.0,111120.0,0.004]
[1756886423213,1.22513,111130.0,111120.0,0.002]
[1756886423520,0.38752,111130.0,111120.0,0.02661]
[1756886423719,0.98468,111130.0,111120.0,0.04938]
[1756886423912,1.00469,111130.0,111120.0,0.04938]
[1756886424221,1.00469,111130.0,111120.0,0.003]
[1756886424610,1.00469,111130.0,111120.0,0.02661]
[1756886424816,0.40753,111130.0,111120.0,0.04938]
[1756886425016,1.22513,111130.0,111120.0,0.003]
[1756886425519,1.22513,111130.0,111120.0,0.52806694]
[1756886427916,1.22513,111130.0,111120.0,0.57444694]
[1756886428317,1.22513,111130.0,111120.0,0.55167694]
[1756886429425,1.22513,111130.0,111120.0,0.57444694]
[1756886429619,0.40753,111130.0,111120.0,0.57444694]
[1756886429924,1.22517,111130.0,111120.0,0.57444694]
[1756886430121,0.40753,111130.0,111120.0,0.57444694]
[1756886430326,1.22517,111130.0,111120.0,0.57444694]
[1756886430525,0.40753,111130.0,111120.0,0.61188694]
[1756886430727,1.22517,111130.0,111120.0,0.61188694]
[1756886431226,0.40753,111130.0,111120.0,0.61188694]
[1756886431428,1.22517,111130.0,111120.0,0.61188694]
[1756886433127,1.15788,111130.0,111120.0,0.87442041]
[1756886433333,0.34,111130.0,111120.0,0.87442041]
[1756886433626,0.34,111130.0,111120.0,1.12442041]
[1756886435634,0.36001,111130.0,111120.0,1.12442041]
[1756886435938,0.40753,111130.0,111120.0,0.86188694]
[1756886438138,0.3616684,111130.0,111120.0,1.12442041]
[1756886438330,0.34,111130.0,111120.0,1.12442041]
[1756886438532,0.34,111130.0,111120.0,1.28750805]
[1756886439535,0.34,111130.0,111120.0,2.10594805]
[1756886442341,0.0001,111140.0,111120.0,2.10594805]
[1756886442548,0.0401,111140.0,111130.0,0.87243041]
[1756886442742,0.37,111140.0,111130.0,0.87243041]
[1756886443443,0.37,111140.0,111130.0,0.93672037]
[1756886443843,0.37,111140.0,111130.0,0.87243041]
[1756886444142,0.37,111140.0,111130.0,1.12243041]
[1756886444950,0.37,111140.0,111130.0,1.27669807]
[1756886445251,0.37,111140.0,111130.0,1.18672037]
[1756886445448,0.37,111140.0,111130.0,2.00492037]
[1756886445949,0.37,111140.0,111130.0,1.7423869]
[1756886447846,0.37,111140.0,111130.0,1.7433869]
[1756886448246,0.37,111140.0,111130.0,2.09589797]
[1756886448746,0.37,111140.0,111130.0,1.27769797]
[1756886448946,0.37,111140.0,111130.0,2.09697797]
[1756886449646,0.0001,111150.0,111130.0,2.06002797]
[1756886449848,0.0101,111150.0,111140.0,0.93672037]
[1756886450150,0.31,111150.0,111140.0,0.93672037]
[1756886452537,0.31,111150.0,111140.0,1.75472037]
[1756886452741,0.31,111150.0,111140.0,1.27668987]
[1756886452941,0.31,111150.0,111140.0,2.09464987]
[1756886453343,0.31,111150.0,111140.0,2.42464987]
[1756886453553,0.31,111150.0,111140.0,2.36035991]
[1756886453847,0.0001,111160.0,111150.0,0.1886414]
[1756886454048,0.33,111160.0,111150.0,0.77780838]
[1756886455252,0.331,111160.0,111150.0,0.71370834]
[1756886456552,0.331,111160.0,111150.0,0.62374694]
[1756886456743,0.331,111160.0,111150.0,1.44186694]
[1756886456946,0.333,111160.0,111150.0,1.44186694]
[1756886457446,0.333,111160.0,111150.0,1.79436181]
[1756886457647,0.333,111160.0,111150.0,0.97624181]
[1756886457853,0.333,111160.0,111150.0,1.53174834]
[1756886458157,0.333,111160.0,111150.0,1.79428181]
[1756886461047,0.333,111160.0,111150.0,2.13428181]
[1756886463548,0.333,111160.0,111150.0,2.19806185]
[1756886464858,0.333,111160.0,111150.0,2.19794185]
[1756886465063,0.333,111160.0,111150.0,2.20243185]
[1756886466558,0.333,111160.0,111150.0,1.38483185]
[1756886466858,0.333,111160.0,111150.0,2.20231185]
[1756886467059,0.333,111160.0,111150.0,1.04483185]
[1756886467261,0.333,111160.0,111150.0,2.23227185]
[1756886467460,0.333,111160.0,111150.0,1.86227185]
[1756886467658,0.0001,111170.0,111160.0,0.08483]
[1756886467862,0.31,111170.0,111160.0,1.68987041]
[1756886468252,0.31,111170.0,111160.0,1.69143041]
[1756886468649,0.0001,111180.0,111170.0,0.08145]
[1756886468852,0.06691,111190.0,111180.0,0.08145]
[1756886469054,0.42681,111190.0,111180.0,1.68801041]
[1756886469263,0.42681,111190.0,111180.0,0.90041]
[1756886469456,0.36,111190.0,111180.0,1.68801041]
[1756886469755,0.42681,111190.0,111180.0,1.68801041]
[1756886470261,0.43281,111190.0,111180.0,1.68901041]
[1756886470665,0.43281,111190.0,111180.0,1.69797462]
[1756886470862,0.366,111190.0,111180.0,0.87901462]
[1756886471161,0.369,111190.0,111180.0,1.69785462]
[1756886471557,0.41541,111190.0,111180.0,1.69785462]
[1756886471757,0.43542,111190.0,111180.0,1.69785462]
[1756886472156,0.43542,111190.0,111180.0,1.69777462]
[1756886472354,0.42942,111190.0,111180.0,1.69777462]
[1756886472668,0.42942,111190.0,111180.0,1.43524115]
[1756886473562,0.42942,111190.0,111180.0,1.69773462]
[1756886473762,0.42642,111190.0,111180.0,1.69773462]
[1756886474065,0.42642,111190.0,111180.0,1.43508115]
[1756886474567,0.42642,111190.0,111180.0,0.61648115]
[1756886474866,0.42642,111190.0,111180.0,1.69757462]
[1756886475167,0.42642,111190.0,111180.0,1.43504115]
[1756886475362,0.06642,111190.0,111180.0,1.76504115]
[1756886476570,0.06642,111190.0,111180.0,2.02757462]
[1756886476770,0.06642,111190.0,111180.0,1.76484115]
[1756886477770,0.06642,111190.0,111180.0,0.94648115]
[1756886477972,0.06642,111190.0,111180.0,1.76476115]
[1756886479572,0.06642,111190.0,111180.0,0.94648115]
[1756886479772,0.06642,111190.0,111180.0,1.76472115]
[1756886480364,0.06642,111190.0,111180.0,1.76452115]
[1756886482373,0.02257,111190.0,111180.0,1.73018115]
[1756886482671,0.04258,111190.0,111180.0,1.73018115]
[1756886482973,0.04258,111190.0,111180.0,1.76492115]
[1756886482974,0.31642,111190.0,111180.0,1.76492115]
[1756886483675,0.31642,111190.0,111180.0,1.58945339]
[1756886488571,0.29641,111190.0,111180.0,1.58945339]
[1756886489677,0.31642,111190.0,111180.0,1.58945339]
[1756886490376,0.31642,111190.0,111180.0,1.59394339]
[1756886493175,0.29641,111190.0,111180.0,1.59394339]
[1756886495976,0.25,111190.0,111180.0,1.59394339]
[1756886496276,0.0001,111200.0,111190.0,0.08234]
[1756886496483,0.06652,111210.0,111200.0,0.0966]
[1756886496781,0.08760777,111210.0,111200.0,0.75619918]
[1756886498285,0.03760777,111210.0,111200.0,0.75619918]
[1756886499081,0.02118777,111210.0,111200.0,0.75619918]
[1756886499382,0.02318777,111210.0,111200.0,0.75619918]
[1756886499881,0.02618777,111210.0,111200.0,0.75619918]
[1756886503281,0.02618777,111210.0,111200.0,0.76068918]
[1756886503684,0.02618777,111210.0,111200.0,1.92940836]
[1756886503982,0.005,111210.0,111200.0,1.92940836]
[1756886504586,0.005,111210.0,111200.0,2.26932996]
[1756886504884,0.005,111210.0,111200.0,2.17940836]
[1756886505277,0.04857658,111260.0,111250.0,0.09773]
[1756886505476,0.02095636,111260.0,111250.0,0.09773]
[1756886505677,0.37055554,111260.0,111250.0,0.09773]
[1756886505874,0.37055554,111260.0,111250.0,0.0603]
[1756886506087,0.02095636,111260.0,111250.0,0.09773]
[1756886506481,0.02095636,111260.0,111250.0,0.80732918]
[1756886506482,0.02395636,111260.0,111250.0,0.80732918]
[1756886506684,0.27395636,111260.0,111250.0,0.80732918]
[1756886507287,0.27395636,111260.0,111250.0,0.44732918]
[1756886507484,0.27395636,111260.0,111250.0,0.09773]
[1756886507991,0.63155554,111260.0,111250.0,0.09873]
[1756886508592,0.63155554,111260.0,111250.0,0.0613]
[1756886508886,0.63149816,111260.0,111250.0,0.0613]
[1756886509094,0.63149816,111260.0,111250.0,0.03827]
[1756886509391,1.44889816,111260.0,111250.0,0.09873]
[1756886509580,1.44889816,111260.0,111250.0,0.41873]
[1756886509778,1.44889816,111260.0,111250.0,0.09873]
[1756886509985,0.02989898,111260.0,111250.0,0.09873]
[1756886510288,0.82832,111260.0,111250.0,0.09873]
[1756886511292,0.82232,111260.0,111250.0,0.09773]
[1756886512196,1.17191918,111260.0,111250.0,0.09773]
[1756886512792,1.19279144,111260.0,111250.0,0.09773]
[1756886513093,1.17191918,111260.0,111250.0,0.09773]
[1756886513681,1.17191918,111260.0,111250.0,0.40773]
[1756886513886,1.17191918,111260.0,111250.0,0.09773]
[1756886514397,1.17191918,111260.0,111250.0,0.40773]
[1756886514597,1.17179918,111260.0,111250.0,0.09773]
[1756886515099,0.8222,111260.0,111250.0,0.09773]
[1756886515489,0.003,111260.0,111250.0,0.40773]
[1756886515690,1.17175918,111260.0,111250.0,0.09773]
[1756886515994,1.19262229,111260.0,111250.0,0.09773]
[1756886516290,0.84302311,111260.0,111250.0,0.09773]
[1756886516494,1.19262229,111260.0,111250.0,0.09773]
[1756886516894,0.84302311,111260.0,111250.0,0.10222]
[1756886518090,0.84278311,111260.0,111250.0,0.10222]
[1756886518596,0.02386311,111260.0,111250.0,0.10222]
[1756886518800,1.17147918,111260.0,111250.0,0.10222]
[1756886519199,0.35259918,111260.0,111250.0,0.10222]
[1756886519400,0.37345916,111260.0,111250.0,0.44222]
[1756886519699,0.8218,111260.0,111250.0,0.79181918]
[1756886519997,0.003,111260.0,111250.0,0.79181918]
[1756886521301,0.82172,111260.0,111250.0,0.79181918]
[1756886522300,0.003,111260.0,111250.0,0.79181918]
[1756886522700,0.82164,111260.0,111250.0,0.79181918]
[1756886522903,0.82164,111260.0,111250.0,0.45181918]
[1756886523106,0.82164,111260.0,111250.0,0.81181918]
[1756886523295,0.82164,111260.0,111250.0,0.10222]
[1756886523803,1.17123918,111260.0,111250.0,0.01875]
[1756886524302,1.42123918,111260.0,111250.0,0.01875]
[1756886524603,1.07168,111260.0,111250.0,0.06479]
[1756886524804,0.60259918,111260.0,111250.0,0.06479]
[1756886525005,1.42131918,111260.0,111250.0,0.10222]
[1756886525194,0.003,111260.0,111250.0,0.46222]
[1756886525391,0.003,111260.0,111250.0,0.10222]
[1756886525606,0.82204,111260.0,111250.0,0.45222]
[1756886525905,0.82204,111260.0,111250.0,0.80181918]
[1756886526310,0.003,111260.0,111250.0,0.80181918]
[1756886526603,0.82196,111260.0,111250.0,0.45222]
[1756886527802,0.82196,111260.0,111250.0,0.10222]
[1756886528510,1.17155918,111260.0,111250.0,0.10222]
[1756886528805,0.35259918,111260.0,111250.0,0.10222]
[1756886528999,1.19244659,111260.0,111250.0,0.10222]
[1756886530900,1.19244659,111260.0,111250.0,0.06479]
[1756886531199,0.84284741,111260.0,111250.0,0.10221]
[1756886531506,1.19244659,111260.0,111250.0,0.10221]
[1756886531700,1.19244659,111260.0,111250.0,0.06479]
[1756886531907,1.44244659,111260.0,111250.0,0.00449]
[1756886533002,1.44244659,111260.0,111250.0,0.01944]
[1756886533410,1.44244659,111260.0,111250.0,0.00449]
[1756886533705,1.91330011,111260.0,111250.0,0.00449]
[1756886534107,1.96187669,111260.0,111250.0,0.00449]
[1756886534609,1.96187669,111260.0,111220.0,0.0844]
[1756886534906,0.34959918,111230.0,111220.0,0.4144]
[1756886535109,0.90780659,111230.0,111210.0,0.03742]
[1756886535403,0.34959918,111220.0,111210.0,0.0844]
[1756886535604,0.37941646,111220.0,111210.0,0.04698]
[1756886536104,0.37941646,111220.0,111200.0,0.10315]
[1756886536307,1.16875918,111210.0,111200.0,0.10315]
[1756886536502,1.18964659,111210.0,111200.0,0.10315]
[1756886537105,1.18976659,111210.0,111200.0,0.10315]
[1756886537410,0.84016741,111210.0,111200.0,0.10315]
[1756886537708,1.19072659,111210.0,111200.0,0.46315]
[1756886537909,1.19064659,111210.0,111200.0,0.10315]
[1756886538210,1.19064659,111210.0,111200.0,0.45315]
[1756886538412,0.02188741,111210.0,111200.0,1.05274918]
[1756886538606,0.001,111210.0,111200.0,1.05274918]
[1756886539509,0.001,111210.0,111200.0,1.05374918]
[1756886545529,0.001,111210.0,111200.0,1.22839106]
[1756886552922,0.001,111210.0,111200.0,0.61627053]
[1756886552923,0.26312053,111210.0,111200.0,0.61627053]
[1756886553128,0.26312053,111210.0,111200.0,0.10415]
[1756886553729,0.26312053,111210.0,111200.0,0.36627053]
[1756886553927,0.81992,111210.0,111200.0,0.69627053]
[1756886554230,0.26312053,111210.0,111200.0,0.36627053]
[1756886554421,0.001,111210.0,111200.0,0.10415]
[1756886554620,0.26312053,111210.0,111200.0,0.69627053]
[1756886555230,0.26312053,111210.0,111200.0,0.36627053]
[1756886555531,1.08208053,111210.0,111200.0,0.36627053]
[1756886557931,1.08208053,111210.0,111200.0,0.10415]
[1756886558127,1.08208053,111210.0,111200.0,0.36178053]
[1756886558632,1.08208053,111210.0,111200.0,0.09966]
[1756886558832,1.08208053,111210.0,111200.0,0.36178053]
[1756886559431,1.08208053,111210.0,111200.0,0.69178053]
[1756886559837,0.001,111210.0,111200.0,0.69178053]
[1756886560133,0.62532053,111210.0,111200.0,0.36178053]
[1756886560724,0.28405741,111210.0,111200.0,0.67178053]
[1756886560926,1.10265741,111210.0,111200.0,0.67178053]
[1756886561541,1.10267292,111210.0,111200.0,0.67178053]
[1756886561742,1.10267292,111210.0,111200.0,0.40966]
[1756886561931,1.10267292,111210.0,111200.0,0.67178053]
[1756886562942,0.28407292,111210.0,111200.0,0.67178053]
[1756886563239,1.10251292,111210.0,111200.0,0.67178053]
[1756886564835,0.02195239,111210.0,111200.0,0.93390106]
[1756886565043,0.02195239,111210.0,111200.0,1.18390106]
[1756886565336,0.001,111210.0,111200.0,1.18390106]
[1756886567438,0.001,111210.0,111200.0,1.55395057]
[1756886568044,0.001,111210.0,111200.0,1.61805061]
[1756886568845,0.001,111210.0,111200.0,1.55395057]
[1756886569237,0.001,111210.0,111200.0,1.61792428]
[1756886571045,0.001,111210.0,111200.0,2.43640428]
[1756886571547,0.001,111210.0,111200.0,2.43628428]
[1756886574943,0.001,111210.0,111200.0,2.43596428]
[1756886578242,0.001,111210.0,111200.0,1.52800288]
[1756886578442,0.001,111210.0,111200.0,2.34580288]
[1756886579145,0.001,111210.0,111200.0,2.09580288]
[1756886579350,0.001,111210.0,111200.0,2.18572468]
[1756886579551,0.001,111210.0,111200.0,1.36792468]
[1756886579748,0.001,111210.0,111200.0,2.18576468]
[1756886580051,0.001,111210.0,111200.0,1.36792468]
[1756886580250,0.001,111210.0,111200.0,2.18576468]
[1756886582949,0.001,111210.0,111200.0,1.36792468]
[1756886583155,0.001,111210.0,111200.0,1.01588235]
[1756886583646,0.001,111210.0,111200.0,1.77014864]
[1756886584353,0.251,111210.0,111200.0,0.95190864]
[1756886584550,0.251,111210.0,111200.0,1.77014864]
[1756886586956,0.251,111210.0,111200.0,0.95190864]
[1756886587256,0.251,111210.0,111200.0,1.77002864]
[1756886587954,0.251,111210.0,111200.0,0.95190864]
[1756886588654,0.251,111210.0,111200.0,0.93390106]
[1756886589153,0.251,111210.0,111200.0,0.40966]
[1756886589360,0.251,111210.0,111200.0,0.67178053]
[1756886589553,0.51312053,111210.0,111200.0,0.67178053]
[1756886589952,0.251,111210.0,111200.0,0.67178053]
[1756886591161,0.251,111210.0,111200.0,0.93390106]
[1756886597461,0.251,111210.0,111200.0,0.93839106]
[1756886600470,0.001,111210.0,111200.0,1.20051159]
[1756886600962,0.001,111210.0,111200.0,0.41415]
[1756886601164,0.001,111210.0,111200.0,1.20051159]
[1756886601359,0.001,111210.0,111200.0,0.93839106]
[1756886603469,0.001,111210.0,111200.0,1.23655]
[1756886603767,0.001,111210.0,111200.0,1.76079106]
[1756886604164,0.001,111210.0,111200.0,1.76075106]
[1756886604664,0.001,111210.0,111200.0,1.82472477]
[1756886605563,0.001,111210.0,111200.0,1.64992869]
[1756886607166,0.001,111210.0,111200.0,0.82756869]
[1756886607367,0.001,111210.0,111200.0,1.65032869]
[1756886607768,0.001,111210.0,111200.0,0.47812371]
[1756886607960,0.001,111210.0,111200.0,1.65036869]
[1756886609068,0.001,111210.0,111200.0,1.74028989]
[1756886609971,0.001,111210.0,111200.0,1.65036869]
[1756886610663,0.001,111210.0,111200.0,1.30092371]
[1756886610967,0.001,111210.0,111200.0,1.65036869]
[1756886622681,0.001,111210.0,111200.0,1.93583996]
[1756886622885,0.001,111210.0,111200.0,1.99981367]
[1756886625183,0.001,111210.0,111200.0,1.93583996]
[1756886625573,0.001,111210.0,111200.0,2.02576156]
[1756886625877,0.001,111210.0,111200.0,2.3742267]
[1756886626382,0.001,111210.0,111200.0,2.40641872]
[1756886627282,0.001,111210.0,111200.0,2.04752876]
[1756886627482,0.00114,111260.0,111250.0,0.09862]
[1756886627679,0.02184421,111260.0,111250.0,0.44806498]
[1756886628182,0.02184421,111260.0,111250.0,0.09862]
[1756886628781,0.02384421,111260.0,111250.0,0.09862]
[1756886628970,0.84680421,111260.0,111250.0,0.09862]
[1756886629181,0.84680421,111260.0,111250.0,0.10311]
[1756886629381,1.19724919,111260.0,111250.0,0.10311]
[1756886630092,1.44724919,111260.0,111250.0,0.01816]
[1756886630479,1.44724919,111260.0,111250.0,0.04192]
[1756886631791,1.44724919,111260.0,111250.0,0.01816]
[1756886633385,1.42644498,111260.0,111250.0,0.01816]
[1756886634092,1.42644498,111260.0,111250.0,0.04192]
[1756886634885,1.077,111260.0,111250.0,0.04192]
[1756886635085,1.42644498,111260.0,111250.0,0.04192]
[1756886635886,1.077,111260.0,111250.0,0.04192]
[1756886636085,1.42644498,111260.0,111250.0,0.04192]
[1756886637193,1.077,111260.0,111250.0,0.06625]
[1756886637379,1.42644498,111260.0,111250.0,0.06625]
[1756886637579,1.42644498,111260.0,111250.0,0.04192]
[1756886637789,1.077,111260.0,111250.0,0.04192]
[1756886637990,1.42644498,111260.0,111250.0,0.04192]
[1756886638190,1.42644498,111260.0,111250.0,0.01816]
[1756886639293,1.17644498,111260.0,111250.0,0.01816]
[1756886640391,0.35244498,111260.0,111250.0,0.10311]
[1756886640693,1.17540498,111260.0,111250.0,0.10311]
[1756886641096,1.21540498,111260.0,111250.0,0.06625]
[1756886641792,0.043,111260.0,111250.0,0.76255498]
[1756886642185,0.003,111260.0,111250.0,0.76255498]
[1756886642586,0.003,111260.0,111250.0,0.77255498]
[1756886642791,0.35244498,111260.0,111250.0,0.10311]
[1756886643395,0.003,111260.0,111250.0,0.10311]
[1756886643594,0.35244498,111260.0,111250.0,0.06625]
[1756886645098,0.003,111260.0,111250.0,0.06625]
[1756886645297,0.35244498,111260.0,111250.0,0.06625]
[1756886647195,1.17572498,111260.0,111250.0,0.10311]
[1756886647400,0.35244498,111260.0,111250.0,0.10311]
[1756886647596,1.17552498,111260.0,111250.0,0.01816]
[1756886647798,1.17552498,111260.0,111250.0,0.04192]
[1756886647994,1.44629638,111260.0,111250.0,0.01816]
[1756886648296,1.85681395,111260.0,111250.0,0.00449]
[1756886650110,1.85681395,111260.0,111230.0,0.08206]
[1756886650407,0.34944498,111240.0,111230.0,0.43206]
[1756886650597,1.19345638,111240.0,111230.0,0.43206]
[1756886650797,0.8440114,111240.0,111230.0,0.43206]
[1756886650998,1.19345638,111240.0,111230.0,0.43206]
[1756886651197,1.19345638,111240.0,111230.0,0.43655]
[1756886651598,1.19345638,111240.0,111230.0,0.43755]
[1756886651800,1.19345638,111240.0,111230.0,0.43855]
[1756886652692,0.8440114,111240.0,111230.0,0.08855]
[1756886652890,1.19345638,111240.0,111230.0,0.00649]
[1756886653091,0.8440114,111240.0,111230.0,0.05313]
[1756886653295,1.19345638,111240.0,111230.0,0.08726]
[1756886654003,1.19445638,111240.0,111230.0,0.08626]
[1756886654805,1.20367987,111240.0,111230.0,0.08526]
[1756886655198,1.20367987,111240.0,111230.0,0.05113]
[1756886655395,0.85423489,111240.0,111230.0,0.05113]
[1756886655595,1.20367987,111240.0,111230.0,0.05113]
[1756886656206,0.8446114,111240.0,111230.0,0.41526]
[1756886656706,1.20318619,111240.0,111230.0,0.41526]
[1756886656907,1.20318619,111240.0,111230.0,0.38113]
[1756886657308,0.38034619,111240.0,111230.0,0.08526]
[1756886657511,1.20338619,111240.0,111230.0,0.08526]
[1756886657808,1.20338619,111240.0,111230.0,0.05113]
[1756886659100,0.38034619,111240.0,111230.0,0.05113]
[1756886659502,1.13394619,111240.0,111230.0,0.05113]
[1756886659809,0.38034619,111240.0,111230.0,0.05113]
[1756886660014,1.13330619,111240.0,111230.0,0.05113]
[1756886663711,1.13330619,111240.0,111230.0,0.08526]
[1756886664314,0.38034619,111240.0,111230.0,0.08526]
[1756886664514,1.20262619,111240.0,111230.0,0.08526]
[1756886665616,1.37731879,111240.0,111230.0,0.08526]
[1756886667209,1.37731879,111240.0,111230.0,0.05113]
[1756886673315,1.37731879,111240.0,111230.0,0.08526]
[1756886674820,1.37731879,111240.0,111230.0,0.05113]
[1756886675522,1.37731879,111240.0,111230.0,0.08526]
[1756886676915,0.55503879,111240.0,111230.0,0.08526]
[1756886677120,1.36690898,111240.0,111230.0,0.08526]
[1756886677523,1.37602166,111240.0,111230.0,0.08526]
[1756886678526,0.54590898,111240.0,111230.0,0.08526]
[1756886678717,0.0217714,111240.0,111230.0,0.45526]
[1756886678917,0.28384019,111240.0,111230.0,0.71732879]
[1756886679123,1.10476019,111240.0,111230.0,0.71732879]
[1756886679324,0.28384019,111240.0,111230.0,0.71732879]
[1756886679524,1.10476019,111240.0,111230.0,0.71732879]
[1756886679723,0.28384019,111240.0,111230.0,0.71732879]
[1756886679918,1.10476019,111240.0,111230.0,0.71732879]
[1756886680318,1.10476019,111240.0,111230.0,0.45526]
[1756886680618,0.28384019,111240.0,111230.0,0.71732879]
[1756886680823,1.10464019,111240.0,111230.0,0.71732879]
[1756886681821,0.8425714,111240.0,111230.0,0.71732879]
[1756886682014,1.10464019,111240.0,111230.0,0.71732879]
[1756886682821,1.10464019,111240.0,111230.0,0.45526]
[1756886683126,0.8425714,111240.0,111230.0,0.71732879]
[1756886683426,1.10464019,111240.0,111230.0,0.71732879]
[1756886685116,1.10464188,111240.0,111230.0,0.71732879]
[1756886686426,0.84257309,111240.0,111230.0,0.45526]
[1756886686624,1.10464188,111240.0,111230.0,0.71732879]
[1756886687023,1.10464188,111240.0,111230.0,0.36732879]
[1756886687625,1.10464188,111240.0,111230.0,0.34732879]
[1756886687830,1.10464188,111240.0,111230.0,0.72732879]
[1756886688028,1.10464188,111240.0,111230.0,0.36732879]
[1756886688330,1.10464188,111240.0,111230.0,0.34732879]
[1756886688528,1.10464188,111240.0,111230.0,0.67732879]
[1756886689030,1.10464188,111240.0,111230.0,0.41526]
[1756886689232,1.10464188,111240.0,111230.0,0.08526]
[1756886689429,0.84257309,111240.0,111230.0,0.34732879]
[1756886689730,1.10464188,111240.0,111230.0,0.34732879]
[1756886692134,1.10464188,111240.0,111230.0,0.36732879]
[1756886692326,1.10464188,111240.0,111230.0,0.70732879]
[1756886692525,1.10464188,111240.0,111230.0,0.65732879]
[1756886693232,0.84257309,111240.0,111230.0,0.65732879]
[1756886693426,1.10464188,111240.0,111230.0,0.65732879]
[1756886694125,0.02177309,111240.0,111230.0,0.91732879]
[1756886694329,0.84201309,111240.0,111230.0,0.91732879]
[1756886694531,0.001,111240.0,111230.0,0.91732879]
[1756886694730,0.001,111240.0,111230.0,0.98130318]
[1756886694931,0.8212,111240.0,111230.0,0.98130318]
[1756886695123,0.8212,111240.0,111230.0,0.91732879]
[1756886695327,0.82116,111240.0,111230.0,0.91732879]
[1756886695531,0.001,111240.0,111230.0,0.91732879]
[1756886695732,0.82112,111240.0,111230.0,0.91732879]
[1756886699326,1.08318879,111240.0,111230.0,0.40526]
[1756886699525,1.08318879,111240.0,111230.0,0.66732879]
[1756886700929,1.08318879,111240.0,111230.0,0.40526]
[1756886701129,1.08318879,111240.0,111230.0,0.66732879]
[1756886701333,0.26306879,111240.0,111230.0,0.66732879]
[1756886701634,0.8212,111240.0,111230.0,0.66732879]
[1756886701838,0.82116,111240.0,111230.0,0.66732879]
[1756886702839,0.001,111240.0,111230.0,0.66732879]
[1756886704437,0.82176,111240.0,111230.0,0.66732879]
[1756886706527,0.82168,111240.0,111230.0,0.66732879]
[1756886707240,0.82168,111240.0,111230.0,0.40526]
[1756886707440,0.82168,111240.0,111230.0,0.66732879]
[1756886710751,1.08374879,111240.0,111230.0,0.34732879]
[1756886710938,1.08374879,111240.0,111230.0,0.71732879]
[1756886713248,1.34581758,111240.0,111230.0,0.08526]
[1756886713547,1.34581758,111240.0,111230.0,0.00449]
[1756886713737,1.61732591,111240.0,111230.0,0.00449]
[1756886715645,0.79664591,111240.0,111230.0,0.00449]
[1756886715853,1.09310833,111240.0,111230.0,0.08891]
[1756886716146,1.61724591,111240.0,111230.0,0.08891]
[1756886716947,0.79664591,111240.0,111230.0,0.08891]
[1756886717145,1.61720591,111240.0,111230.0,0.08891]
[1756886717346,1.61720591,111240.0,111230.0,0.00449]
[1756886718050,1.61720591,111240.0,111230.0,0.08891]
[1756886718454,1.61720591,111240.0,111230.0,0.05171]
[1756886719152,1.61720591,111240.0,111230.0,0.00449]
[1756886723368,0.02250833,111240.0,111230.0,1.20304758]
[1756886723656,0.001,111240.0,111230.0,1.20304758]
[1756886724555,0.82136,111240.0,111230.0,1.20304758]
[1756886724751,0.82128,111240.0,111230.0,1.20304758]
[1756886724948,0.001,111240.0,111230.0,1.29294538]
[1756886725255,0.001,111240.0,111230.0,1.35691977]
[1756886725555,0.001,111240.0,111230.0,1.61898856]
[1756886725950,0.001,111240.0,111230.0,2.43934856]
[1756886726260,0.001,111240.0,111230.0,2.17727977]
[1756886726452,0.001,111240.0,111230.0,2.17827977]
[1756886727554,0.001,111240.0,111230.0,2.35245685]
[1756886728252,0.0001,111250.0,111240.0,0.1371097]
[1756886728452,0.35222,111260.0,111250.0,0.09898]
[1756886728653,0.35212,111260.0,111250.0,0.77813733]
[1756886729555,0.35212,111260.0,111250.0,0.78262733]
[1756886730259,0.35312,111260.0,111250.0,0.78262733]
[1756886731758,0.001,111260.0,111250.0,0.7915239]
[1756886731958,0.003,111260.0,111250.0,0.7915239]
[1756886732551,0.003,111260.0,111250.0,1.1314074]
[1756886733248,0.003,111260.0,111250.0,1.9514874]
[1756886734552,0.003,111260.0,111250.0,2.2152874]
[1756886734755,0.003,111260.0,111250.0,2.27926179]
[1756886735147,0.003,111260.0,111250.0,1.3952074]
[1756886735461,0.003,111260.0,111250.0,2.2150874]
[1756886735759,0.003,111260.0,111250.0,1.3952074]
[1756886735958,0.003,111260.0,111250.0,2.27906179]
[1756886736158,0.003,111260.0,111250.0,2.2150874]
[1756886743866,0.003,111260.0,111250.0,1.3952074]
[1756886744054,0.003,111260.0,111250.0,2.2147274]
[1756886744855,0.003,111260.0,111250.0,2.2145274]